[Event "SRB-ch Semifinal 2022"]
[Site "Paracin"]
[Date "2022.03.19"]
[Round "4.11"]
[White "Manakova, Maria"]
[Black "Srdanovic, Jovana"]
[Result "1-0"]
[ECO "B92"]
[WhiteElo "2257"]
[BlackElo "2194"]
[Annotator "NA"]
[PlyCount "111"]
[EventDate "2022.03.17"]
[EventType "swiss"]
[EventCountry "SRB"]
[SourceTitle "playchess.com"]
[Source "ChessBase"]
[SourceQuality "1"]
[TimeControl "40/5400+30:1800+30"]

1. e4 {[%emt 0:00:05]} c5 {[%emt 0:01:16]} 2. Nf3 {[%emt 0:00:10]} d6 {[%emt 0:00:06]} 3. d4 {[%emt 0:00:04]} cxd4 {[%emt 0:00:06]} 4. Nxd4 {[%emt 0:00:01]} Nf6 {[%emt 0:00:09]} 5. Nc3 {[%emt 0:00:04]} a6 {[%emt 0:00:13]} 6. Be2 {[%emt 0:00:10]} e5 {[%emt 0:02:00]} 7. Nb3 {[%emt 0:00:05]} h6 {[%emt 0:00:28]} 8. Be3 {[%emt 0:01:11]} Be7 {[%emt 0:00:32]} 9. Nd5 {[%emt 0:13:12]} Nxd5 {[%emt 0:17:15]} 10. Qxd5 {[%emt 0:00:21]} Nd7 {[%emt 0:02:35]} 11. c4 {[%emt 0:06:43]} Nf6 {[%emt 0:02:10]} 12. Qd3 {[%emt 0:00:12]} O-O {[%emt 0:00:38]} 13. O-O {[%emt 0:03:26]} b5 {[%emt 0:10:50]} 14. Rac1 {[%emt 0:30:37]} Be6 {[%emt 0:04:50]} 15. Nd2 {[%emt 0:01:54]} Qb8 {[%emt 0:05:53]} 16. b3 {[%emt 0:06:36]} Rd8 {[%emt 0:04:27]} 17. f4 {[%emt 0:04:56]} bxc4 {[%emt 0:11:40]} 18. Nxc4 {[%emt 0:03:32]} Bxc4 {[%emt 0:00:21]} 19. bxc4 {[%emt 0:05:36]} Qc7 {[%emt 0:03:39]} 20. Qc2 {[%emt 0:02:22]} Nd7 {[%emt 0:07:05]} 21. Kh1 {[%emt 0:03:17]} Bf6 {[%emt 0:06:08]} 22. Bh5 {[%emt 0:00:36]} exf4 {[%emt 0:01:46]} 23. Bxf4 {[%emt 0:00:36]} Rab8 {[%emt 0:06:02]} 24. Qd1 {[%emt 0:00:30]} Qc6 {[%emt 0:03:30]} 25. Qxd6 {[%emt 0:10:37]} Qxe4 {[%emt 0:05:12]} 26. Qd5 {[%emt 0:02:37]} Qxd5 {[%emt 0:00:24]} 27. cxd5 {[%emt 0:00:03]} Rb5 {[%emt 0:00:47]} 28. Bc7 {[%emt 0:00:54]} Rc8 {[%emt 0:00:39]} 29. Be2 {[%emt 0:00:56]} Rxd5 {[%emt 0:00:39]} 30. Bxa6 {[%emt 0:00:03]} Re8 {[%emt 0:00:04]} 31. a4 {[%emt 0:00:42]} Nc5 {[%emt 0:01:38]} 32. Bc4 {[%emt 0:00:49]} Rh5 {[%emt 0:02:10]} 33. a5 {[%emt 0:01:16]} Ne6 {[%emt 0:00:50]} 34. Be2 {[%emt 0:01:03]} Rd5 {[%emt 0:00:16]} 35. Bb6 {[%emt 0:00:19]} Rd2 {[%emt 0:00:35]} 36. Bb5 {[%emt 0:00:19]} Rb8 {[%emt 0:00:11]} 37. Bc4 {[%emt 0:01:10]} Bd4 {[%emt 0:00:56]} 38. Bxd4 {[%emt 0:01:11]} Rxd4 {[%emt 0:00:04]} 39. a6 {[%emt 0:00:21]} Ra8 {[%emt 0:00:07]} 40. h3 {[%emt 0:01:13]} Ra7 {[%emt 0:01:21]} 41. Kh2 {[%emt 0:09:34]} Ng5 {[%emt 0:18:03]} 42. Rf2 {[%emt 0:01:38]} Rxc4 {[%emt 0:10:44]} 43. Rxc4 {[%emt 0:00:12]} Rxa6 {[%emt 0:00:01]} 44. Rc8+ {[%emt 0:01:19]} Kh7 {[%emt 0:00:06]} 45. h4 {[%emt 0:00:23]} Ne4 {[%emt 0:00:07]} 46. Rf4 {[%emt 0:06:22]} Nf6 {[%emt 0:00:57]} 47. Rf8 {[%emt 0:09:10]} Kg6 {[%emt 0:00:32]} 48. g4 {[%emt 0:00:41]} Ra2+ {[%emt 0:02:46]} 49. Kg3 {[%emt 0:00:17]} Ra3+ {[%emt 0:00:19]} 50. Rf3 {[%emt 0:00:22]} Rxf3+ {[%emt 0:01:12]} 51. Kxf3 {[%emt 0:00:03]} h5 {[%emt 0:00:05]} 52. g5 {[%emt 0:00:49]} Nh7 {[%emt 0:00:55]} 53. Ra8 {[%emt 0:01:18]} f6 {[%emt 0:00:44]} 54. Kf4 {[%emt 0:00:19]} fxg5+ {[%emt 0:00:44]} 55. hxg5 {[%emt 0:00:05]} h4 {[%emt 0:00:33]} 56. Kg4 {[%emt 0:00:19]} 1-0

[Event "SRB-ch Semifinal 2022"]
[Site "Paracin"]
[Date "2022.03.19"]
[Round "4.13"]
[White "Petrovic, Marija"]
[Black "Drljevic, Ljilja"]
[Result "1-0"]
[ECO "A40"]
[WhiteElo "1987"]
[BlackElo "2217"]
[Annotator "NA"]
[PlyCount "87"]
[EventDate "2022.03.17"]
[EventType "swiss"]
[EventCountry "SRB"]
[SourceTitle "playchess.com"]
[Source "ChessBase"]
[SourceQuality "1"]
[TimeControl "40/5400+30:1800+30"]

1. d4 {[%emt 1:31:00]} g6 {[%emt 0:01:18]} 2. Bf4 {[%emt 0:00:00]} Bg7 {[%emt 0:00:10]} 3. c3 {[%emt 0:00:00]} d6 {[%emt 0:00:43]} 4. Nd2 {[%emt 0:00:00]} e5 {[%emt 0:04:20]} 5. dxe5 {[%emt 0:00:00]} dxe5 {[%emt 0:00:04]} 6. Bg3 {[%emt 0:00:00]} Qe7 {[%emt 0:13:20]} 7. e4 {[%emt 0:00:00]} Nh6 {[%emt 0:02:05]} 8. Bc4 {[%emt 0:00:00]} O-O {[%emt 0:01:49]} 9. Ngf3 {[%emt 0:00:00]} Kh8 {[%emt 0:03:09]} 10. Qe2 {[%emt 0:00:00]} Nd7 {[%emt 0:11:37]} 11. O-O {[%emt 0:00:00]} f5 {[%emt 0:07:27]} 12. Bh4 {[%emt 0:00:00]} Qe8 {[%emt 0:02:37]} 13. Ng5 {[%emt 0:00:00]} Nb6 {[%emt 0:03:34]} 14. Bb3 {[%emt 0:00:00]} f4 {[%emt 0:02:24]} 15. a4 {[%emt 0:00:00]} Bf6 {[%emt 0:15:39]} 16. a5 {[%emt 0:00:00]} Nd7 {[%emt 0:00:12]} 17. Ngf3 {[%emt 0:00:00]} Bxh4 {[%emt 0:04:12]} 18. Nxh4 {[%emt 0:00:00]} Qe7 {[%emt 0:02:45]} 19. Nhf3 {[%emt 0:00:00]} g5 {[%emt 0:00:56]} 20. Rfd1 {[%emt 0:00:00]} g4 {[%emt 0:01:26]} 21. Ne1 {[%emt 0:00:00]} Nc5 {[%emt 0:02:47]} 22. Bc4 {[%emt 0:00:00]} a6 {[%emt 0:07:41]} 23. Nf1 {[%emt 0:00:00]} Ne6 {[%emt 0:01:05]} 24. Rd5 {[%emt 0:00:00]} Ng5 {[%emt 0:00:13]} 25. Nd3 {[%emt 0:00:00]} Nhf7 {[%emt 0:04:28]} 26. Nb4 {[%emt 0:00:00]} Nd6 {[%emt 0:02:09]} 27. Nd2 {[%emt 0:00:00]} Be6 {[%emt 0:03:27]} 28. Rxe5 {[%emt 0:00:00]} Qf6 {[%emt 0:01:57]} 29. Rxe6 {[%emt 0:00:00]} Nxe6 {[%emt 0:00:08]} 30. e5 {[%emt 0:00:00]} f3 {[%emt 0:01:07]} 31. Qe1 {[%emt 0:00:00]} Qg7 {[%emt 0:00:28]} 32. Bxe6 {[%emt 0:00:00]} Nf5 {[%emt 0:00:35]} 33. Qe4 {[%emt 0:00:00]} Qg5 {[%emt 0:00:33]} 34. Nf1 {[%emt 0:01:50]} Rae8 {[%emt 0:00:25]} 35. Bxf5 {[%emt 0:01:37]} Rxf5 {[%emt 0:00:02]} 36. Nd3 {[%emt 0:01:39]} h5 {[%emt 0:00:55]} 37. e6 {[%emt 0:00:41]} Rf6 {[%emt 0:00:38]} 38. Re1 {[%emt 0:00:50]} h4 {[%emt 0:00:31]} 39. Qe5 {[%emt 0:01:09]} Qh6 {[%emt 0:00:15]} 40. e7 {[%emt 0:00:41]} Kg8 {[%emt 0:00:45]} 41. Qd5+ {[%emt 0:30:46]} Kh8 {[%emt 0:03:58]} 42. Re5 {[%emt 0:00:00]} Rd6 {[%emt 0:05:32]} 43. Qf7 {[%emt 0:00:00]} Qg6 {[%emt 0:00:23]} 44. Rh5+ {[%emt 0:00:00]} 1-0

[Event "SRB-ch Semifinal 2022"]
[Site "Paracin"]
[Date "2022.03.19"]
[Round "4.14"]
[White "Jurisic, Iskra"]
[Black "Chelushkina, Irina"]
[Result "0-1"]
[ECO "A69"]
[WhiteElo "1827"]
[BlackElo "2183"]
[Annotator "NA"]
[PlyCount "58"]
[EventDate "2022.03.17"]
[EventType "swiss"]
[EventCountry "SRB"]
[SourceTitle "playchess.com"]
[Source "ChessBase"]
[SourceQuality "1"]
[TimeControl "40/5400+30:1800+30"]

1. d4 {[%emt 0:00:07]} c5 {[%emt 0:00:14]} 2. d5 {[%emt 0:00:27]} e6 {[%emt 0:00:14]} 3. c4 {[%emt 0:02:27]} Nf6 {[%emt 0:00:23]} 4. Nc3 {[%emt 0:00:21]} exd5 {[%emt 0:00:05]} 5. cxd5 {[%emt 0:00:09]} d6 {[%emt 0:00:03]} 6. e4 {[%emt 0:00:58]} g6 {[%emt 0:00:12]} 7. Nf3 {[%emt 0:00:43]} Bg7 {[%emt 0:00:06]} 8. Be2 {[%emt 0:06:07]} O-O {[%emt 0:00:06]} 9. O-O {[%emt 0:00:22]} a6 {[%emt 0:00:09]} 10. a4 {[%emt 0:01:01]} Re8 {[%emt 0:01:25]} 11. Nd2 {[%emt 0:01:24]} Nbd7 {[%emt 0:01:16]} 12. f4 {[%emt 0:12:14]} c4 {[%emt 0:06:00]} 13. Bxc4 {[%emt 0:19:18]} Nc5 {[%emt 0:00:40]} 14. f5 {[%emt 0:06:41]} Ncxe4 {[%emt 0:16:39]} 15. fxg6 {[%emt 0:06:31]} fxg6 {[%emt 0:00:07]} 16. Ndxe4 {[%emt 0:02:55]} Nxe4 {[%emt 0:00:05]} 17. Nxe4 {[%emt 0:04:10]} Rxe4 {[%emt 0:00:45]} 18. Bd3 {[%emt 0:02:48]} Re8 {[%emt 0:05:41]} 19. Ra3 {[%emt 0:07:39]} Bd7 {[%emt 0:06:14]} 20. Kh1 {[%emt 0:02:21]} Be5 {[%emt 0:04:07]} 21. Bf4 {[%emt 0:01:14]} Bxf4 {[%emt 0:09:52]} 22. Rxf4 {[%emt 0:00:10]} Qg5 {[%emt 0:00:03]} 23. Rb4 {[%emt 0:03:08]} Bg4 {[%emt 0:02:16]} 24. Qg1 {[%emt 0:05:41]} Rac8 {[%emt 0:10:41]} 25. h3 {[%emt 0:03:33]} Rc1 {[%emt 0:03:01]} 26. Rxg4 {[%emt 0:03:23]} Rxg1+ {[%emt 0:00:05]} 27. Kxg1 {[%emt 0:00:04]} Qc1+ {[%emt 0:00:05]} 28. Kh2 {[%emt 0:01:00]} Re1 {[%emt 0:03:46]} 29. Bxg6 {[%emt 0:03:31]} Rh1+ {[%emt 0:00:10]} 0-1

[Event "SRB-ch Semifinal 2022"]
[Site "Paracin"]
[Date "2022.03.20"]
[Round "5.10"]
[White "Todorovic, Goran M"]
[Black "Gajcin, Marina"]
[Result "1/2-1/2"]
[ECO "B33"]
[WhiteElo "2336"]
[BlackElo "2254"]
[Annotator "NA RC"]
[PlyCount "72"]
[EventDate "2022.03.17"]
[EventType "swiss"]
[EventCountry "SRB"]
[SourceTitle "playchess.com"]
[Source "ChessBase"]
[SourceQuality "1"]
[TimeControl "40/5400+30:1800+30"]

1. e4 {[%emt 0:00:04]} c5 {[%emt 0:01:03]} 2. Nf3 {[%emt 0:00:04]} Nc6 {[%emt 0:00:13]} 3. d4 {[%emt 0:00:11]} cxd4 {[%emt 0:00:21]} 4. Nxd4 {[%emt 0:00:10]} Nf6 {[%emt 0:00:32]} 5. Nc3 {[%emt 0:00:06]} e5 {[%emt 0:00:08]} 6. Ndb5 {[%emt 0:00:18]} d6 {[%emt 0:00:10]} 7. Bg5 {[%emt 0:00:53]} a6 {[%emt 0:00:08]} 8. Na3 {[%emt 0:00:07]} b5 {[%emt 0:00:09]} 9. Bxf6 {[%emt 0:00:34]} gxf6 {[%emt 0:00:06]} 10. Nd5 {[%emt 0:00:35]} Bg7 {[%emt 1:32:40]} 11. c3 {[%emt 0:00:55]} f5 {[%emt 0:00:00]} 12. Bd3 {[%emt 0:01:38]} Ne7 {[%emt 0:00:00]} 13. Nxe7 {[%emt 0:01:06]} Qxe7 {[%emt 0:00:00]} 14. O-O {[%emt 1:30:49]} O-O {[%emt 0:00:00]} 15. Nc2 {[%emt 0:00:30]} f4 {[%emt 0:02:30]} 16. a4 {[%emt 0:00:30]} Qb7 {[%emt 0:00:30]} 17. axb5 {[%emt 0:00:30]} axb5 {[%emt 0:00:00]} 18. Rxa8 {[%emt 0:00:00]} Qxa8 {[%emt 0:00:00]} 19. Nb4 {[%emt 0:01:00]} Bb7 {[%emt 0:01:30]} 20. Re1 {[%emt 0:00:30]} f5 {[%emt 0:00:30]} 21. f3 {[%emt 0:00:30]} ({But not} 21. exf5 Bxg2 22. Bxb5 Rxf5 23. Bc4+ (23. Qg4 Rf6 $15) 23... Kh8 $11) 21... Kh8 {[%emt 0:00:00]} 22. Kh1 $14 {[%emt 0:00:00]} Bf6 {[%emt 0:00:00]} 23. Bc2 {[%emt 0:01:00]} Rd8 {[%emt 0:01:30]} 24. Qd3 {[%emt 0:00:30]} Qa7 {[%emt 0:00:30]} 25. Qxb5 {[%emt 0:00:00]} fxe4 {[%emt 0:00:30]} 26. fxe4 {[%emt 0:00:00]} f3 {[%emt 0:00:30]} 27. gxf3 {[%emt 0:00:00]} Bh4 {[%emt 0:00:00]} 28. Rf1 {[%emt 0:00:00]} Bc8 {[%emt 0:00:00]} 29. Nc6 {[%emt 0:00:00]} Qd7 {[%emt 0:01:30]} 30. Bb3 {[%emt 0:00:00]} Rf8 {[%emt 0:00:30]} 31. Rg1 {[%emt 0:00:00]} Qe8 {[%emt 0:00:00]} 32. Qc4 {[%emt 0:00:00]} Bh3 {[%emt 0:00:00]} 33. Qd5 {[%emt 0:00:00]} Bf2 {[%emt 0:00:00]} 34. Rg5 {[%emt 0:05:00]} Bh4 {[%emt 0:00:00]} 35. Rg1 {[%emt 0:00:00]} Bf2 {[%emt 0:02:30]} 36. Rg5 {[%emt 0:00:00]} Bh4 {[%emt 0:00:00]} 1/2-1/2

[Event "SRB-ch Semifinal 2022"]
[Site "Paracin"]
[Date "2022.03.21"]
[Round "7.2"]
[White "Radovanovic, Nikola"]
[Black "Djordjevic, Vuk"]
[Result "1/2-1/2"]
[ECO "E15"]
[WhiteElo "2413"]
[BlackElo "2382"]
[Annotator "NA"]
[PlyCount "202"]
[EventDate "2022.03.17"]
[EventType "swiss"]
[EventCountry "SRB"]
[SourceTitle "playchess.com"]
[Source "ChessBase"]
[SourceQuality "1"]
[TimeControl "40/5400+30:1800+30"]

1. d4 {[%emt 0:00:19]} Nf6 {[%emt 0:02:22]} 2. c4 {[%emt 0:00:08]} e6 {[%emt 0:00:27]} 3. Nf3 {[%emt 0:00:13]} b6 {[%emt 0:00:47]} 4. g3 {[%emt 0:00:14]} Ba6 {[%emt 0:01:20]} 5. b3 {[%emt 0:00:10]} Bb4+ {[%emt 0:00:59]} 6. Bd2 {[%emt 0:00:17]} Be7 {[%emt 0:00:09]} 7. Bg2 {[%emt 0:00:35]} c6 {[%emt 0:00:18]} 8. O-O {[%emt 0:01:26]} d5 {[%emt 0:00:40]} 9. Ne5 {[%emt 0:01:24]} Nfd7 {[%emt 0:00:29]} 10. Bc3 {[%emt 0:23:52]} Nxe5 {[%emt 0:16:48]} 11. dxe5 {[%emt 0:01:08]} dxc4 {[%emt 0:00:12]} 12. Nd2 {[%emt 0:01:29]} cxb3 {[%emt 0:02:16]} 13. axb3 {[%emt 0:00:36]} Bb5 $11 {[%emt 0:12:35]} 14. Re1 {[%emt 0:14:10]} O-O {[%emt 0:09:58]} 15. Qc2 {[%emt 0:07:56]} Na6 {[%emt 0:10:03]} 16. Ne4 {[%emt 0:15:47]} Nb4 {[%emt 0:05:47]} 17. Bxb4 {[%emt 0:01:00]} Bxb4 {[%emt 0:00:11]} 18. Red1 {[%emt 0:00:25]} Qc7 {[%emt 0:02:11]} 19. Nd6 {[%emt 0:07:47]} Bxd6 {[%emt 0:00:59]} 20. exd6 {[%emt 0:00:57]} Qd7 {[%emt 0:01:35]} 21. b4 {[%emt 0:00:56]} Rac8 {[%emt 0:10:57]} 22. e4 {[%emt 0:02:57]} c5 {[%emt 0:03:43]} 23. Qc3 {[%emt 0:00:46]} cxb4 {[%emt 0:02:34]} 24. Qxb4 {[%emt 0:00:06]} Rc5 {[%emt 0:00:12]} 25. Qb2 {[%emt 0:05:30]} e5 {[%emt 0:04:49]} 26. h4 {[%emt 0:00:20]} Rfc8 {[%emt 0:01:05]} 27. Qa3 {[%emt 0:02:43]} a6 {[%emt 0:02:37]} 28. Qb2 {[%emt 0:04:20]} Qe6 {[%emt 0:02:01]} 29. Rd2 {[%emt 0:01:23]} Rd8 {[%emt 0:01:44]} 30. Rad1 {[%emt 0:00:21]} Qc4 {[%emt 0:01:53]} 31. Rd5 {[%emt 0:01:40]} f6 {[%emt 0:03:14]} 32. R5d2 {[%emt 0:02:46]} Qc3 {[%emt 0:00:21]} 33. Qb1 {[%emt 0:00:21]} Kf8 {[%emt 0:00:34]} 34. Bf1 {[%emt 0:01:08]} Rd7 {[%emt 0:01:05]} 35. Bxb5 {[%emt 0:00:30]} axb5 {[%emt 0:00:10]} 36. Rb2 {[%emt 0:02:14]} Rc6 {[%emt 0:00:30]} 37. Rxb5 {[%emt 0:00:34]} Rcxd6 {[%emt 0:00:19]} 38. Rxd6 {[%emt 0:00:27]} Rxd6 {[%emt 0:00:06]} 39. Rxb6 {[%emt 0:00:30]} Rxb6 {[%emt 0:00:06]} 40. Qxb6 {[%emt 0:00:05]} Qe1+ {[%emt 0:00:17]} 41. Kh2 {[%emt 0:30:36]} Qxe4 {[%emt 0:30:31]} 42. Qd8+ {[%emt 0:00:00]} Kf7 {[%emt 0:00:00]} 43. h5 {[%emt 0:00:00]} Qc6 {[%emt 0:00:00]} 44. g4 {[%emt 0:00:00]} h6 {[%emt 0:00:00]} 45. Kg3 {[%emt 0:00:00]} Qe6 {[%emt 0:00:00]} 46. Qc7+ {[%emt 0:00:00]} Kg8 {[%emt 0:00:00]} 47. Qb8+ {[%emt 0:00:00]} Kh7 {[%emt 0:00:00]} 48. Qb1+ {[%emt 0:00:00]} Kh8 {[%emt 0:00:00]} 49. f3 {[%emt 0:00:00]} Qe8 {[%emt 0:00:00]} 50. Qf5 {[%emt 0:00:00]} Kg8 {[%emt 0:00:00]} 51. Kg2 {[%emt 0:00:00]} Qc6 {[%emt 0:00:00]} 52. Kg3 {[%emt 0:00:00]} Kf8 {[%emt 0:00:00]} 53. Qd3 {[%emt 0:00:00]} Qe8 {[%emt 0:00:00]} 54. Qf5 {[%emt 0:00:00]} Qb8 {[%emt 0:00:00]} 55. Kg2 {[%emt 0:00:00]} Qb2+ {[%emt 0:02:07]} 56. Kg3 {[%emt 0:00:00]} Qb4 {[%emt 0:03:23]} 57. Qc8+ {[%emt 0:00:00]} Kf7 {[%emt 0:00:55]} 58. Qd7+ {[%emt 0:00:08]} Qe7 {[%emt 0:00:14]} 59. Qd5+ {[%emt 0:00:13]} Ke8 {[%emt 0:00:57]} 60. Qa8+ {[%emt 0:00:42]} Qd8 {[%emt 0:00:18]} 61. Qc6+ {[%emt 0:01:57]} Qd7 {[%emt 0:00:25]} 62. Qa8+ {[%emt 0:00:22]} Ke7 {[%emt 0:00:35]} 63. Qa3+ {[%emt 0:00:56]} Ke8 {[%emt 0:02:07]} 64. Qa8+ {[%emt 0:00:12]} Kf7 {[%emt 0:00:08]} 65. Qa2+ {[%emt 0:00:20]} Kf8 {[%emt 0:00:24]} 66. Qa3+ {[%emt 0:01:04]} Qe7 {[%emt 0:00:10]} 67. Qd3 {[%emt 0:00:42]} Qe8 {[%emt 0:00:48]} 68. Qf5 {[%emt 0:01:17]} Qc6 {[%emt 0:00:13]} 69. Qd3 {[%emt 0:00:44]} Qb6 {[%emt 0:02:09]} 70. Qd7 {[%emt 0:02:46]} e4 {[%emt 0:00:42]} 71. fxe4 {[%emt 0:02:39]} Qe3+ {[%emt 0:00:08]} 72. Kh4 {[%emt 0:00:48]} Qxe4 {[%emt 0:00:14]} 73. Qd8+ {[%emt 0:00:26]} Kf7 {[%emt 0:00:05]} 74. Qd7+ {[%emt 0:00:14]} Kg8 {[%emt 0:00:23]} 75. Qc8+ {[%emt 0:00:37]} Kf7 {[%emt 0:00:03]} 76. Qd7+ {[%emt 0:00:07]} Qe7 {[%emt 0:00:32]} 77. Qd5+ {[%emt 0:00:23]} Qe6 {[%emt 0:01:11]} 78. Qb7+ {[%emt 0:00:39]} Kf8 {[%emt 0:01:28]} 79. Qb8+ {[%emt 0:00:35]} Qe8 {[%emt 0:00:17]} 80. Qd6+ {[%emt 0:00:16]} Kg8 {[%emt 0:00:04]} 81. Qd5+ {[%emt 0:00:17]} Kh8 {[%emt 0:01:04]} 82. Qf5 {[%emt 0:01:31]} Qc6 {[%emt 0:00:16]} 83. Kh3 {[%emt 0:00:37]} Qc3+ {[%emt 0:00:24]} 84. Kg2 {[%emt 0:00:14]} Qd2+ {[%emt 0:00:51]} 85. Kh3 {[%emt 0:00:06]} Qe3+ {[%emt 0:00:26]} 86. Kg2 {[%emt 0:00:16]} Kg8 {[%emt 0:00:53]} 87. Qd5+ {[%emt 0:00:47]} Kf8 {[%emt 0:00:08]} 88. Qd8+ {[%emt 0:00:23]} Qe8 {[%emt 0:00:16]} 89. Qd6+ {[%emt 0:00:11]} Qe7 {[%emt 0:00:17]} 90. Qb8+ {[%emt 0:00:18]} Kf7 {[%emt 0:00:05]} 91. Qb3+ {[%emt 0:00:19]} Ke8 {[%emt 0:00:04]} 92. Qb8+ {[%emt 0:00:53]} Qd8 {[%emt 0:00:05]} 93. Qb5+ {[%emt 0:01:08]} Qd7 {[%emt 0:00:00]} 94. Qb8+ {[%emt 0:00:22]} Ke7 {[%emt 0:00:08]} 95. Qb4+ {[%emt 0:00:25]} Qd6 {[%emt 0:00:22]} 96. Qb7+ {[%emt 0:00:14]} Ke6 {[%emt 0:00:27]} 97. Qxg7 {[%emt 0:00:39]} Qd5+ {[%emt 0:02:57]} 98. Kg3 {[%emt 0:00:37]} Qd3+ {[%emt 0:00:33]} 99. Kf4 {[%emt 0:00:30]} Qd4+ {[%emt 0:00:14]} 100. Kf3 {[%emt 0:00:13]} Qd1+ {[%emt 0:00:04]} 101. Kf4 {[%emt 0:00:24]} Qd4+ {[%emt 0:00:12]} 1/2-1/2

[Event "SRB-ch Semifinal 2022"]
[Site "Paracin"]
[Date "2022.03.21"]
[Round "7.3"]
[White "Perunovic, Miodrag"]
[Black "Martic, Ivan"]
[Result "1/2-1/2"]
[ECO "C50"]
[WhiteElo "2413"]
[BlackElo "2287"]
[Annotator "NA"]
[PlyCount "137"]
[EventDate "2022.03.17"]
[EventType "swiss"]
[EventCountry "SRB"]
[SourceTitle "playchess.com"]
[Source "ChessBase"]
[SourceQuality "1"]
[TimeControl "40/5400+30:1800+30"]

1. e4 {[%emt 0:02:41]} e5 {[%emt 0:00:12]} 2. Bc4 {[%emt 0:00:40]} Nf6 {[%emt 0:00:12]} 3. d3 {[%emt 0:00:02]} Nc6 {[%emt 0:01:52]} 4. Nc3 {[%emt 0:00:03]} Na5 {[%emt 0:03:06]} 5. Bb3 {[%emt 0:00:02]} Bc5 {[%emt 0:04:39]} 6. Nf3 {[%emt 0:01:50]} d6 {[%emt 0:04:24]} 7. h3 {[%emt 1:28:42]} Nxb3 {[%emt 0:05:37]} 8. axb3 {[%emt 0:00:00]} a6 {[%emt 0:00:46]} 9. O-O {[%emt 0:00:00]} h6 {[%emt 0:05:47]} 10. Be3 {[%emt 0:00:00]} Bxe3 {[%emt 0:05:18]} 11. fxe3 {[%emt 0:00:00]} O-O {[%emt 0:00:23]} 12. Qe1 {[%emt 0:00:00]} c6 $11 {[%emt 0:05:44]} 13. Qg3 {[%emt 0:00:00]} Nh5 {[%emt 0:14:05]} 14. Qh2 {[%emt 0:00:00]} Nf6 {[%emt 0:03:09]} 15. Rf2 {[%emt 0:00:00]} Qe7 {[%emt 0:04:34]} 16. Raf1 {[%emt 0:00:00]} Bd7 {[%emt 0:03:16]} 17. Ne2 {[%emt 0:00:00]} Rae8 {[%emt 0:05:14]} 18. g4 {[%emt 0:00:00]} d5 {[%emt 0:00:40]} 19. g5 {[%emt 0:00:00]} hxg5 {[%emt 0:05:17]} 20. Rg2 {[%emt 0:00:00]} Nh7 {[%emt 0:02:26]} 21. Nc3 {[%emt 0:00:00]} dxe4 {[%emt 0:01:06]} 22. Nxe4 {[%emt 0:00:00]} f6 {[%emt 0:00:37]} 23. Qg3 {[%emt 0:00:00]} Bc8 {[%emt 0:01:04]} 24. Nh2 {[%emt 0:00:00]} f5 {[%emt 0:04:03]} 25. Nxg5 {[%emt 0:00:00]} f4 {[%emt 0:01:00]} 26. exf4 {[%emt 0:00:00]} exf4 {[%emt 0:01:21]} 27. Rxf4 {[%emt 0:06:33]} Rxf4 {[%emt 0:13:30]} 28. Qxf4 {[%emt 0:00:02]} Qc5+ {[%emt 0:00:57]} 29. Qf2 {[%emt 0:02:17]} Qxf2+ {[%emt 0:01:46]} 30. Kxf2 {[%emt 0:00:03]} Nxg5 {[%emt 0:00:13]} 31. Rxg5 {[%emt 0:00:01]} Bxh3 {[%emt 0:00:08]} 32. Nf3 {[%emt 0:00:10]} Re7 {[%emt 0:01:26]} 33. b4 {[%emt 0:00:08]} Bd7 {[%emt 0:00:31]} 34. Ne5 {[%emt 0:00:19]} Be6 {[%emt 0:00:48]} 35. Ke3 {[%emt 0:00:13]} Bd7 {[%emt 0:00:27]} 36. Kd4 {[%emt 0:00:02]} Be8 {[%emt 0:00:27]} 37. Kc5 {[%emt 0:00:09]} Re6 {[%emt 0:00:26]} 38. Kb6 {[%emt 0:01:06]} Re7 {[%emt 0:00:04]} 39. d4 {[%emt 0:00:12]} Kh7 {[%emt 0:00:10]} 40. Rg2 {[%emt 0:00:45]} Kh6 {[%emt 0:00:40]} 41. Nc4 {[%emt 0:30:27]} g5 {[%emt 0:06:02]} 42. Nd6 {[%emt 0:00:00]} Bg6 {[%emt 0:00:07]} 43. Nxb7 {[%emt 0:00:00]} Kh5 {[%emt 0:02:22]} 44. Nd6 {[%emt 0:00:00]} g4 {[%emt 0:02:32]} 45. Nc4 {[%emt 0:00:00]} Be4 {[%emt 0:02:16]} 46. Rg1 {[%emt 0:00:00]} Rg7 {[%emt 0:08:08]} 47. Ne3 {[%emt 0:00:00]} g3 {[%emt 0:00:10]} 48. c4 {[%emt 0:00:00]} Kh4 {[%emt 0:01:07]} 49. Kxa6 {[%emt 0:00:00]} Kh3 {[%emt 0:02:07]} 50. Re1 {[%emt 0:01:48]} Bf3 {[%emt 0:03:37]} 51. Rf1 {[%emt 0:01:29]} Rf7 {[%emt 0:00:27]} 52. Kb6 {[%emt 0:01:09]} g2 {[%emt 0:02:53]} 53. Nxg2 {[%emt 0:02:38]} Kxg2 {[%emt 0:00:05]} 54. Re1 {[%emt 0:00:09]} Kf2 {[%emt 0:00:42]} 55. Re5 {[%emt 0:00:01]} Rd7 {[%emt 0:01:24]} 56. Kc5 {[%emt 0:00:13]} Ra7 {[%emt 0:00:29]} 57. b5 {[%emt 0:02:54]} cxb5 {[%emt 0:00:05]} 58. cxb5 {[%emt 0:00:12]} Rc7+ {[%emt 0:01:10]} 59. Kb6 {[%emt 0:00:26]} Rc2 {[%emt 0:01:23]} 60. b4 {[%emt 0:00:02]} Rc4 {[%emt 0:00:34]} 61. d5 {[%emt 0:00:01]} Rxb4 {[%emt 0:00:28]} 62. d6 {[%emt 0:00:34]} Rd4 {[%emt 0:01:21]} 63. Kc5 {[%emt 0:00:52]} Rd1 {[%emt 0:00:10]} 64. b6 {[%emt 0:00:59]} Rc1+ {[%emt 0:00:25]} 65. Kb5 {[%emt 0:00:09]} Rb1+ {[%emt 0:01:09]} 66. Ka5 {[%emt 0:01:15]} Ra1+ {[%emt 0:00:48]} 67. Kb5 {[%emt 0:00:34]} Rb1+ {[%emt 0:00:14]} 68. Kc5 {[%emt 0:00:45]} Rc1+ {[%emt 0:00:40]} 69. Kb5 {[%emt 0:00:13]} 1/2-1/2

[Event "SRB-ch Semifinal 2022"]
[Site "Paracin"]
[Date "2022.03.21"]
[Round "7.5"]
[White "Tadic, Stefan"]
[Black "Kojovic, Dragan"]
[Result "1-0"]
[ECO "B12"]
[WhiteElo "2336"]
[BlackElo "2298"]
[Annotator "NA"]
[PlyCount "65"]
[EventDate "2022.03.17"]
[EventType "swiss"]
[EventCountry "SRB"]
[SourceTitle "playchess.com"]
[Source "ChessBase"]
[SourceQuality "1"]
[TimeControl "40/5400+30:1800+30"]

1. e4 {[%emt 0:00:04]} c6 {[%emt 0:02:50]} 2. d4 {[%emt 0:00:22]} d5 {[%emt 0:00:08]} 3. e5 {[%emt 0:00:56]} Bf5 {[%emt 0:00:12]} 4. h4 {[%emt 0:01:08]} h5 {[%emt 0:00:27]} 5. c4 {[%emt 0:00:40]} e6 {[%emt 0:01:07]} 6. Nc3 {[%emt 0:00:06]} Nd7 {[%emt 0:01:40]} 7. Nge2 {[%emt 0:00:20]} Ne7 {[%emt 0:02:53]} 8. Ng3 {[%emt 0:00:30]} Bg6 {[%emt 0:00:24]} 9. Bg5 {[%emt 0:07:20]} Qb6 {[%emt 0:05:16]} 10. Qd2 {[%emt 0:06:53]} (10. Na4 $5 {[%cal Ra4b6]} Qa5+ 11. Bd2 $11) 10... Nf5 {[%emt 0:05:55] [#]} (10... dxc4 $11 11. Bxc4 Rd8) 11. Nxf5 $1 {[%emt 0:07:53]} Bxf5 {[%emt 0:00:56]} 12. cxd5 {[%emt 0:08:36]} cxd5 {[%emt 0:02:13]} 13. Rc1 {[%emt 0:07:10]} a6 $16 {[%emt 0:08:40]} 14. Be2 {[%emt 0:11:17]} f6 {[%emt 0:15:12]} 15. exf6 {[%emt 0:03:54]} gxf6 {[%emt 0:00:23]} 16. Bf4 {[%emt 0:00:34]} Kf7 {[%emt 0:22:56]} 17. O-O {[%emt 0:01:55]} Qa5 {[%emt 0:07:09]} 18. Qd1 {[%emt 0:05:07]} Bh6 {[%emt 0:10:20]} 19. Bxh6 {[%emt 0:05:57]} Rxh6 {[%emt 0:00:05]} 20. Bf3 {[%emt 0:07:48]} Rhh8 {[%emt 0:03:56]} 21. g3 {[%emt 0:00:36]} Qb4 {[%emt 0:02:43]} 22. Re1 {[%emt 0:02:09]} Qd6 {[%emt 0:00:45]} 23. Bxh5+ {[%emt 0:02:39]} Ke7 {[%emt 0:00:01]} 24. Qf3 {[%emt 0:01:33]} Kd8 {[%emt 0:01:17]} 25. Bg4 {[%emt 0:00:31]} Bxg4 {[%emt 0:00:40]} 26. Qxg4 {[%emt 0:00:01]} Re8 {[%emt 0:01:30]} 27. Qg6 {[%emt 0:07:11]} f5 {[%emt 0:01:02]} 28. Qg5+ {[%emt 0:00:47]} Re7 {[%emt 0:00:30]} 29. Ne2 {[%emt 0:01:28]} Nf8 {[%emt 0:00:24]} 30. Nf4 {[%emt 0:00:15]} Kd7 {[%emt 0:00:11]} 31. Nd3 {[%emt 0:00:22]} b6 {[%emt 0:03:17]} 32. Ne5+ {[%emt 0:00:08]} Ke8 {[%emt 0:00:15]} 33. Qh5+ {[%emt 0:03:18]} 1-0